lending/lending_fUSD_20250406
["ID","MTS","AMOUNT","RATE_DAILY","PERIOD"]
[357288013,1743981031846,-1075.98660854,0.0002,2]
[357288014,1743981031889,-1861.85462059,0.0002,2]
[357288015,1743981031902,-3910.85418163,0.0002,2]
[357288016,1743981031915,-374.56720625,0.0002,2]
[357288017,1743981031947,-2340.0,0.0002,2]
[357288018,1743981031959,-371.51000001,0.0002,2]
[357288019,1743981031970,-712.02367317,0.0002,2]
[357288020,1743981031982,-718.15600001,0.0002,2]
[357288021,1743981031997,-493.99999992,0.0002,2]
[357288022,1743981032009,-654.91072738,0.0002,2]
[357288025,1743981032024,-7796.13192,0.0002,2]
[357288027,1743981032035,-950.949985,0.0002,2]
[357288029,1743981032047,-1997.21734795,0.0002,2]
[357288064,1743981037471,-777.16,0.00018953,2]
[357288065,1743981037482,-4308.29,0.00018953,2]
[357288066,1743981037491,-151691.71,0.0002,2]
[357288067,1743981037503,-1946.59465,0.0002,2]
[357288068,1743981037515,-3728.8663324,0.0002,2]
[357288069,1743981037526,-353.85036687,0.0002,2]
[357288070,1743981037537,-8974.56919011,0.0002,2]
[357288071,1743981037695,-350.28517195,0.0002,2]
[357288072,1743981037707,-1527.40908036,0.0002,2]
[357288073,1743981037718,-1295.60124394,0.0002,2]
[357288214,1743981039657,-8296.07596278,0.0002,2]
[357288225,1743981039754,-19378.75,0.0002,2]
[357288227,1743981039765,-1493.27209043,0.0002,2]
[357288229,1743981039777,-5148.19399528,0.0002,2]
[357288231,1743981039788,-11814.4454,0.0002,2]
[357288234,1743981039799,-1466.34982846,0.0002,2]
[357288237,1743981039821,-77734.49107017,0.0002,2]
[357288243,1743981039871,-358.30277528,0.0002,2]
[357288245,1743981039882,-5997.92117972,0.0002,2]
[357288247,1743981039894,-289744.87831828,0.0002,2]
[357288249,1743981039904,-40740.14093535,0.0002,2]
[357288251,1743981039913,-1972.10072497,0.0002,2]
[357288253,1743981039923,-1477.94648345,0.0002,2]
[357288255,1743981039932,-4289.33988537,0.0002,2]
[357288257,1743981039944,-32089.43880395,0.0002,2]
[357288259,1743981039955,-475.49962009,0.0002,4]
[357288261,1743981039964,-151.28,0.0002,2]
[357288263,1743981039974,-202.99,0.0002004,2]
[357288265,1743981039984,-500.0,0.00020047,2]
[357288267,1743981039993,-250.0,0.00020056,2]
[357288269,1743981040003,-162.09,0.0002027,2]
[357288271,1743981040012,-300.0,0.0002029,2]
[357288273,1743981040021,-4723.48,0.00020292,2]
[357288275,1743981040030,-23900.0,0.00020327,2]
[357288277,1743981040040,-250.0,0.0002034,2]
[357288279,1743981040049,-190.78,0.0002034,2]
[357288281,1743981040059,-1999.6,0.00020482,2]
[357288283,1743981040068,-1230.75,0.00020496,2]
[357288285,1743981040078,-225.0,0.00020971,2]
[357288287,1743981040086,-525.62100968,0.00020973,2]
[357288289,1743981040095,-501.92710556,0.00020973,2]
[357288291,1743981040105,-500.48992386,0.00020973,2]
[357288293,1743981040117,-500.0,0.00020973,2]
[357288295,1743981040128,-500.0,0.00020973,2]
[357288297,1743981040138,-154.05179552,0.00020973,2]
[357288299,1743981040147,-500.71468123,0.00020973,2]
[357288301,1743981040157,-505.9650105,0.00020973,2]
[357288303,1743981040166,-500.0,0.00020973,2]
[357288305,1743981040176,-152.44881058,0.00020973,2]
[357288307,1743981040185,-502.19994835,0.00020973,2]
[357288309,1743981040195,-98845.41480932,0.00021,2]
[357288311,1743981040204,-300.0,0.00021,2]
[357288313,1743981040214,-200.83913366,0.00021,2]
[357288315,1743981040224,-420.0,0.00021044,2]
[357288317,1743981040235,-250.0,0.00021245,2]
[357288319,1743981040245,-162.09,0.00021396,2]
[357288322,1743981040259,-212.16,0.00021483,2]
[357288324,1743981040268,-353.61,0.0002191,2]
[357288326,1743981040278,-501.54245216,0.0002195,2]
[357288328,1743981040288,-37133.82,0.00022144,2]
[357288330,1743981040298,-367.86,0.00022161,2]
[357288332,1743981040308,-651.82,0.0002218,2]
[357288334,1743981040318,-1852.42,0.0002223,2]
[357288336,1743981040328,-200.0,0.00022277,7]
[357288338,1743981040340,-225.0,0.00022341,2]
[357288340,1743981040349,-162.09,0.00022522,2]
[357288342,1743981040358,-1102.17,0.00022707,2]
[357288344,1743981040372,-250.0,0.00022732,2]
[357288346,1743981040381,-1230.75,0.0002276,2]
[357288348,1743981040390,-587.0,0.00022931,2]
[357288350,1743981040399,-350.0,0.00023,2]
[357288351,1743981040408,-170.39,0.00023199,2]
[357288354,1743981040417,-4527.09366746,0.000232,2]
[357288356,1743981040427,-2771.90310831,0.00023583,2]
[357288358,1743981040436,-162.09,0.00023648,2]
[357288359,1743981040445,-172.21,0.00023657,2]
[357288361,1743981040455,-248.01544304,0.00023671,2]
[357288363,1743981040464,-500.0,0.00023671,2]
[357288365,1743981040473,-380.11257616,0.00023671,2]
[357288367,1743981040483,-336.26,0.00023836,2]
[357288369,1743981040493,-3800.0,0.000239,8]
[357288371,1743981040503,-151.28,0.00024648,2]
[357288373,1743981040513,-353.61,0.00024649,2]
[357288375,1743981040522,-1000.0,0.00024658,2]
[357288377,1743981040531,-161.40435702,0.00024773,2]
[357288379,1743981040541,-171.75120534,0.00024773,2]
[357288381,1743981040551,-162.09,0.00024774,2]
[357288383,1743981040560,-317.0,0.00024987,2]
[357288385,1743981040570,-400.0,0.00025,2]
[357288387,1743981040579,-1230.75,0.00025024,2]
[357288389,1743981040589,-618.49675777,0.00025452,2]
[357288391,1743981040599,-1444.3975827,0.00025766,2]
[357288393,1743981040608,-162.09,0.000259,2]
[357288395,1743981040622,-501.42009875,0.00025975,2]
[357288397,1743981040631,-1000.0,0.00026452,2]
[357288399,1743981040641,-341.70869542,0.00026452,2]
[357288401,1743981040651,-1000.0,0.00026452,2]
[357288403,1743981040662,-318.21830189,0.000265,2]
[357288405,1743981040671,-500.0,0.000266,2]
[357288407,1743981040681,-156.06,0.00026849,2]
[357288409,1743981040692,-195.75,0.00026849,2]
[357288411,1743981040703,-229.64,0.00026849,2]
[357288413,1743981040712,-450.0,0.00027,2]
[357288415,1743981040722,-162.09,0.00027026,2]
[357288417,1743981040733,-2379.95,0.00027114,2]
[357288419,1743981040743,-2771.90310831,0.00027267,2]
[357288421,1743981040753,-1230.75,0.00027288,2]
[357288423,1743981040763,-1324.49,0.00027397,2]
[357288425,1743981040772,-497.5,0.00027397,2]
[357288427,1743981040782,-172.21,0.000276,2]
[357288429,1743981040792,-162.09,0.00028153,2]
[357288431,1743981040801,-500.0,0.0002855,5]
[357288433,1743981040811,-1324.49,0.00028767,2]
[357288435,1743981040821,-384.62507404,0.00029,6]
[357288437,1743981040831,-500.0,0.00029,2]
[357288439,1743981040841,-1000.0,0.00029151,5]
[357288441,1743981040852,-162.09,0.00029279,2]
[357288443,1743981040862,-1230.75,0.00029552,2]
[357288445,1743981040875,-331.88,0.00029815,2]
[357288447,1743981040885,-150.99,0.00029815,2]
[357288448,1743981040894,-8977.54,0.00029815,2]
[357288449,1743981040903,-10701.22,0.00029815,10]
[357288450,1743981040913,-2762.9,0.00029815,2]
[357288451,1743981040922,-499.99,0.00029815,2]
[357288452,1743981040932,-2131.57,0.00029815,2]
[357288453,1743981040942,-150.99,0.00029815,2]
[357288455,1743981040952,-212.0,0.0003,2]
[357288457,1743981040961,-1324.49,0.00030137,2]
[357288459,1743981040971,-162.09,0.00030405,2]
[357288460,1743981040980,-2771.90310831,0.0003095,2]
[357288462,1743981040990,-550.0,0.00031,2]
[357288464,1743981040999,-1324.49,0.00031507,2]
[357288465,1743981041008,-172.21,0.00031542,2]
[357288466,1743981041018,-1230.75,0.00031816,2]
[357288467,1743981041028,-371.10205849,0.00032079,5]
[357288468,1743981041038,-195.75,0.00032646,2]
[357288469,1743981041047,-229.64,0.00032646,2]
[357288470,1743981041057,-1324.49,0.00032877,2]
[357288471,1743981041067,-3039.34995319,0.00033,2]
[357288472,1743981041076,-600.0,0.00033,2]
[357288473,1743981041085,-184.47,0.00033685,2]
[357288474,1743981041095,-276.5843275,0.0003379,2]
[357288475,1743981041105,-88985.0,0.000338,2]
[357288476,1743981041115,-6709.88221546,0.00033844,2]
[357288477,1743981041128,-1230.75,0.0003408,2]
[357288478,1743981041138,-156.06,0.00034192,2]
[357288479,1743981041147,-150.0,0.00034548,10]
[357288480,1743981041156,-2771.90310831,0.00034633,2]
[357288481,1743981041166,-5556.0,0.000347,3]
[357288482,1743981041175,-650.0,0.00035,2]
[357288483,1743981041185,-162.66,0.00035,2]
[357288484,1743981041194,-336.26,0.00035068,2]
[357288485,1743981041203,-172.21,0.00035485,2]
[357288486,1743981041213,-3278.51349628,0.000356,7]
[357288487,1743981041222,-5556.0,0.000356,5]
[357288488,1743981041237,-152.35,0.00035616,2]
[357288489,1743981041247,-444.51657698,0.00036178,2]
[357288490,1743981041256,-1230.75,0.00036344,2]
[357288491,1743981041266,-1500.0,0.00036471,5]
[357288492,1743981041276,-1158.80855114,0.00036471,5]
[357288493,1743981041285,-152.35,0.00036804,2]
[357288494,1743981041295,-700.0,0.00037,2]
[357288495,1743981041305,-335.5667401,0.000372,103]
[357288496,1743981041314,-335.56674006,0.000372,103]
[357288497,1743981041325,-335.56674006,0.000372,103]
[357288498,1743981041335,-443.33,0.0003741,120]
[357288499,1743981041344,-181.39198423,0.0003765,2]
[357288500,1743981041354,-338.56256975,0.0003766,2]
[357288501,1743981041363,-152.35,0.00037991,2]
[357288502,1743981041375,-5035.8,0.00038,30]
[357288503,1743981041385,-2771.90310831,0.00038317,2]
[357288504,1743981041394,-194.31920016,0.000384,33]
[357288505,1743981041403,-171.56856378,0.000384,33]
[357288506,1743981041413,-195.75,0.00038443,2]
[357288507,1743981041423,-229.64,0.00038443,2]
[357288508,1743981041432,-1096.54579052,0.00038446,10]
[357288509,1743981041441,-150.0,0.00038499,2]
[357288510,1743981041451,-1230.75,0.00038608,2]
[357288511,1743981041461,-2135.84448083,0.00038753,2]
[357288512,1743981041471,-83281.99418674,0.0003907,2]
[357288513,1743981041481,-198.94940819,0.0003917,5]
[357288514,1743981041491,-152.35,0.00039178,2]
[357288515,1743981041501,-2332.0,0.000392,5]
[357288516,1743981041511,-300.0,0.00039255,2]
[357288517,1743981041521,-403.59,0.000393,30]
[357288518,1743981041530,-400.0,0.000393,30]
[357288519,1743981041540,-2356.711796,0.000393,29]
[357288520,1743981041550,-7522.47249625,0.0003939,3]
[357288521,1743981041563,-564.35132592,0.0003939,3]
[357288522,1743981041575,-387.505,0.0003939,3]
[357288523,1743981041586,-1200.96862189,0.0003939,3]
[357288524,1743981041613,-2004.01599736,0.0003939,3]
[357288525,1743981041636,-2996.09236788,0.0003939,3]
[357288526,1743981041645,-4803.90763212,0.0003939,3]
[357288527,1743981041657,-1538.59439847,0.0003939,3]
[357288528,1743981041666,-500.0,0.000394,100]
[357288529,1743981041675,-150.0,0.00039453,2]
[357288530,1743981041684,-7230.66872995,0.00039453,3]
[357288531,1743981041694,-379.38107587,0.00039453,7]
[357288532,1743981041704,-15721.40571085,0.00039453,2]
[357288533,1743981041714,-1000.0,0.00039458,2]
[357288534,1743981041723,-289.97,0.00039458,120]
[357288535,1743981041733,-200.0,0.00039459,2]
[357288536,1743981041743,-300.0,0.00039648,2]
[357288537,1743981041753,-166.66,0.00039831,2]
[357288538,1743981041763,-150.0,0.00039869,2]
[357288539,1743981041774,-282.53,0.00039954,2]
[357288540,1743981041784,-170.47,0.00039954,2]
[357288541,1743981041794,-851.0,0.00039954,2]
[357288542,1743981041804,-3954.0,0.00039954,2]
[357288543,1743981041815,-1119.0,0.00039954,2]
[357288544,1743981041826,-1093.34049419,0.0004,15]
[357288545,1743981041837,-157.7,0.0004,2]
[357288546,1743981041847,-450.0,0.0004004,4]
[357288547,1743981041856,-152.35,0.00040365,2]
[357288548,1743981041870,-150.0,0.00040433,4]
[357288549,1743981041880,-161.40435702,0.00040587,2]
[357288550,1743981041890,-1230.75,0.00040871,2]
[357288551,1743981041900,-185.0,0.00041,14]
[357288552,1743981041910,-1415.77523366,0.00041066,3]
[357288560,1743981042492,-4926.72679693,0.00041066,3]
[357288562,1743981042503,-9022.97394301,0.00041076,3]
[357288569,1743981042603,-2669.26,0.00041076,3]
[357288570,1743981042616,-407.99666842,0.00041076,3]
[357288571,1743981042631,-1560.0,0.00041076,3]
[357288572,1743981042644,-1005.87452528,0.00041076,3]
[357288573,1743981042656,-9.30067259,0.00041076,3]
[357288574,1743981042666,-6342.50203059,0.00041076,3]
[357288575,1743981042677,-14675.4058093,0.00041086,3]
[357288576,1743981042686,-17778.8114875,0.00041086,3]
[357288586,1743981043460,-1248.6946043,0.00041086,3]
[357288587,1743981043471,-150.0,0.00041096,10]
[357288588,1743981043481,-500.0,0.00041096,30]
[357288589,1743981043492,-500.0,0.00041096,30]
[357288590,1743981043502,-500.0,0.00041096,30]
[357288591,1743981043513,-500.0,0.00041096,30]
[357288592,1743981043523,-500.0,0.00041096,30]
[357288593,1743981043534,-500.0,0.00041096,30]
[357288594,1743981043544,-500.0,0.00041096,30]
[357288595,1743981043554,-500.0,0.00041096,30]
[357288596,1743981043564,-500.0,0.00041096,30]
[357288597,1743981043574,-500.0,0.00041096,30]
[357288598,1743981043584,-500.0,0.00041096,30]
[357288599,1743981043595,-500.0,0.00041096,30]
[357288600,1743981043605,-500.0,0.00041096,30]
[357288601,1743981043615,-500.0,0.00041096,30]
[357288602,1743981043630,-500.0,0.00041096,30]
[357288603,1743981043640,-500.0,0.00041096,30]
[357288604,1743981043650,-500.0,0.00041096,30]
[357288605,1743981043660,-500.0,0.00041096,30]
[357288606,1743981043670,-500.0,0.00041096,30]
[357288607,1743981043679,-500.0,0.00041096,30]
[357288608,1743981043689,-500.0,0.00041096,30]
[357288609,1743981043699,-500.0,0.00041096,30]
[357288610,1743981043709,-500.0,0.00041096,30]
[357288611,1743981043719,-500.0,0.00041096,30]
[357288612,1743981043729,-500.0,0.00041096,30]
[357288613,1743981043740,-500.0,0.00041096,30]
[357288614,1743981043751,-500.0,0.00041096,30]
[357288615,1743981043761,-483.0,0.00041096,30]
[357288616,1743981043772,-622.76589525,0.00041096,31]
[357288617,1743981043782,-622.76589525,0.00041096,31]
[357288618,1743981043792,-622.76589525,0.00041096,31]
[357288619,1743981043802,-622.76589525,0.00041096,31]
[357288620,1743981043812,-622.76589525,0.00041096,31]
[357288621,1743981043821,-622.76589525,0.00041096,31]
[357288622,1743981043832,-622.76589525,0.00041096,31]
[357288623,1743981043842,-622.76589525,0.00041096,31]
[357288624,1743981043852,-622.76589525,0.00041096,31]
[357288625,1743981043863,-622.76589525,0.00041096,31]
[357288626,1743981043878,-622.76589525,0.00041096,31]
[357288627,1743981043888,-622.76589525,0.00041096,31]
[357288628,1743981043898,-622.76589525,0.00041096,31]
[357288629,1743981043908,-622.76589525,0.00041096,31]
[357288630,1743981043918,-622.76589525,0.00041096,31]
[357288631,1743981043927,-622.76589525,0.00041096,31]
[357288632,1743981043936,-622.76589525,0.00041096,31]
[357288633,1743981043946,-622.76589525,0.00041096,31]
[357288634,1743981043955,-662.39645221,0.00041096,31]
[357288635,1743981043964,-662.39645221,0.00041096,31]
[357288636,1743981043975,-662.39645221,0.00041096,31]
[357288637,1743981043985,-662.39645221,0.00041096,31]
[357288638,1743981043995,-662.39645221,0.00041096,31]
[357288639,1743981044006,-662.39645221,0.00041096,31]
[357288640,1743981044016,-662.39645221,0.00041096,31]
[357288641,1743981044026,-662.39645221,0.00041096,31]
[357288642,1743981044036,-662.39645221,0.00041096,31]
[357288643,1743981044046,-618.23668874,0.00041096,31]
[357288644,1743981044056,-618.23668874,0.00041096,31]
[357288645,1743981044066,-618.23668874,0.00041096,31]
[357288646,1743981044076,-166.66,0.00041146,2]
[357288647,1743981044087,-150.0,0.00041239,120]
[357288648,1743981044097,-156.06,0.00041534,2]
[357288649,1743981044108,-152.35,0.00041552,2]
[357288650,1743981044123,-250.0,0.00041644,10]
[357288651,1743981044134,-443.33,0.00041888,120]
[357288652,1743981044144,-4273.84114509,0.0004197,3]
[357288653,1743981044157,-1645.8934959,0.0004197,3]
[357288654,1743981044169,-422.7673896,0.0004197,3]
[357288655,1743981044180,-1295.2526104,0.0004198,3]
[357288656,1743981044221,-6082.63390399,0.0004198,3]
[357288657,1743981044243,-7297.51929491,0.0004198,3]
[357288658,1743981044255,-6342.50203059,0.0004199,3]
[357288659,1743981044267,-5999.99,0.00042,120]
[357288660,1743981044280,-471.18,0.00042,120]
[357288661,1743981044292,-258.38,0.00042,120]
[357288662,1743981044304,-2771.90310831,0.00042,15]
[357288663,1743981044315,-350.0,0.00042192,10]
[357288664,1743981044327,-1525.177,0.000422,63]
[357288665,1743981044339,-166.66,0.00042461,2]
[357288666,1743981044350,-150.0,0.00042609,120]
[357288667,1743981044362,-152.35,0.0004274,2]
[357288668,1743981044376,-250.0,0.0004274,10]
[357288669,1743981044388,-151.0,0.00042954,2]
[357288670,1743981044697,-851.0,0.00042954,2]
[357288671,1743981044715,-1312.464,0.00042954,2]
[357288672,1743981044725,-257.80659261,0.00042954,2]
[357288673,1743981044738,-861.19340739,0.00042954,2]
[357288674,1743981044748,-782.0,0.00043,10]
[357288675,1743981044758,-1230.75,0.00043135,2]
[357288676,1743981044768,-4865.1401764,0.00043194,3]
[357288715,1743981045672,-529.31,0.000388,31]
[357288716,1743981045682,-529.31,0.000388,31]
[357288718,1743981045692,-1477.36185419,0.00043194,3]
[357288720,1743981045702,-4489.01814581,0.00043205,3]
[357288722,1743981045714,-1982.66600998,0.00043205,3]
[357288724,1743981045726,-4150.49653936,0.00043205,3]
[357288749,1743981046180,-529.31,0.000388,31]
[357288751,1743981046190,-529.31,0.000388,31]
[357288753,1743981046199,-529.31,0.000388,31]
[357288755,1743981046208,-364.6,0.00042,120]
[357288757,1743981046218,-4053.22511415,0.00043205,3]
[357288759,1743981046229,-301.9300211,0.00043214,3]
[357288761,1743981046244,-277.4671736,0.00043214,3]
[357288768,1743981046306,-529.31,0.000388,31]
[357288770,1743981046316,-252.471,0.000388,31]
[357288772,1743981046330,-276.839,0.000388,31]
[357288773,1743981046339,-310.84134454,0.000388,31]
[357288783,1743981341476,-833.4141,0.00043736,120]
[357288784,1743981341500,-592.96992846,0.00043836,120]
[357288785,1743981341523,-592.96992846,0.00043836,120]
[357288786,1743981341546,-592.96992846,0.00043836,120]
[357288787,1743981341570,-592.96992846,0.00043836,120]
[357288788,1743981341592,-592.96992846,0.00043836,120]
[357288789,1743981341615,-368.3221577,0.00043836,120]
[357288790,1743981357690,150.0,0.00043735,120]
[357288791,1743981459564,150.0,0.00043735,120]
[357288793,1743981495466,533.4141,0.00043735,120]
[357288796,1743981984944,5953.27227572,0.00031,120]
[357288799,1743982079121,13591.84160453,0.0001,2]
[357288800,1743982082880,264257.6139805,0.00015,2]
[357288801,1743982082913,50000.0,0.00015,2]
[357288805,1743982124384,518.94,0.00039441,120]
[357288806,1743982151590,-205.52081846,0.00014999,2]
[357288808,1743982151623,-187.92194408,0.00014999,2]
[357288810,1743982151653,-197.45132369,0.00014999,2]
[357288812,1743982151684,-595.92855094,0.00014999,2]
[357288813,1743982151715,-286.28651251,0.00014999,2]
[357288814,1743982151752,-8236.08022566,0.00015,2]
[357288815,1743982151794,-9709.18937534,0.00015,2]
[357288816,1743982151858,-9709.18937534,0.00015,2]
[357288817,1743982151918,-9709.18937534,0.00015,2]
[357288818,1743982151961,-9709.18937534,0.00015,2]
[357288820,1743982152265,-9709.18937534,0.00015,2]
[357288821,1743982152305,-1280.27189423,0.00015,2]
[357288822,1743982152346,-9709.18937534,0.00015,2]
[357288823,1743982152392,-9709.18937534,0.00015,2]
[357288824,1743982152433,-9709.18937534,0.00015,2]
[357288825,1743982152486,-9709.18937534,0.00015,2]
[357288826,1743982152525,-9709.18937534,0.00015,2]
[357288827,1743982152567,-9709.18937534,0.00015,2]
[357288828,1743982152609,-9709.18937534,0.00015,2]
[357288829,1743982152658,-9709.18937534,0.00015,2]
[357288883,1743982176553,-12453.36783832,0.00015,2]
[357288884,1743982176608,-12453.36783832,0.00015,2]
[357288885,1743982176657,-12453.36783832,0.00015,2]
[357288886,1743982176703,-12453.36783832,0.00015,2]
[357288887,1743982176751,-12453.36783832,0.00015,2]
[357288888,1743982176815,-12453.36783832,0.00015,2]
[357288889,1743982177106,-11523.62776695,0.00015,2]
[357288890,1743982177156,-12453.36783832,0.00015,2]
[357288891,1743982177244,-12453.36783832,0.00015,2]
[357288892,1743982177290,-12453.36783832,0.00015,2]
[357288893,1743982177328,-12453.36783832,0.00015,2]
[357288894,1743982201154,387.92,0.0001499,3]
[357288896,1743982201498,-5367.27853323,0.00015,2]
[357288899,1743982205072,-275.51155881,0.0001499,2]
[357288916,1743982231786,-300.0,0.00014999,2]
[357288917,1743982231796,-150.0,0.00014999,2]
[357288918,1743982231806,-28.31588386,0.00015,2]
[357288919,1743982231818,-2348.329902,0.00015,2]
[357288920,1743982231989,-19391.5954645,0.00015,2]
[357288921,1743982232000,-7731.46873991,0.00015,2]
[357288922,1743982232059,-419.38027886,0.00015,2]
[357288923,1743982232129,-422.3963079,0.00015,2]
[357288924,1743982232141,-299.99,0.00015,2]
[357288925,1743982232152,-6504.05104181,0.00015,2]
[357288934,1743982237644,-271347.45396193,0.00015,2]
[357288935,1743982237656,-567.17940406,0.00015,2]
[357288936,1743982237725,-559.28999998,0.00015,2]
[357288937,1743982237788,-574.50144306,0.00015,2]
[357288938,1743982237800,-3866.2624,0.00015,2]
[357288939,1743982237861,-1106.04237799,0.00015,2]
[357288940,1743982237930,-6663.96946359,0.00015,2]
[357288941,1743982237942,-298.0,0.00015,2]
[357288942,1743982237954,-16203.79999999,0.00015,2]
[357288943,1743982238002,-600.00000005,0.00015,2]
[357288944,1743982238074,-377.3770029,0.00015,2]
[357288954,1743982238567,-289503.18873107,0.00015,2]
[357288956,1743982238577,-255.0,0.00016124,2]
[357288958,1743982238586,-433.0,0.00017339,2]
[357288960,1743982238596,-479.0,0.00018629,2]
[357288962,1743982238608,-578.0,0.000188,2]
[357288964,1743982238619,-2044.48617451,0.000189,2]
[357288966,1743982238629,-250.0,0.00019,2]
[357288968,1743982238639,-2044.48617443,0.00019011,2]
[357288970,1743982238650,-2044.48617443,0.00019122,2]
[357288971,1743982238659,-2044.48617443,0.00019233,2]
[357288973,1743982238669,-2044.48617443,0.00019344,2]
[357288975,1743982238678,-250.0,0.00019356,2]
[357288977,1743982238689,-250.0,0.000194,2]
[357288980,1743982238701,-2044.48617443,0.00019456,2]
[357288981,1743982238710,-1800.0,0.000195,7]
[357288983,1743982238720,-2044.48617443,0.00019567,2]
[357288986,1743982238730,-3700.0,0.000196,7]
[357288989,1743982238743,-2044.48617443,0.00019678,2]
[357288991,1743982238752,-5600.0,0.000197,7]
[357288993,1743982238762,-2044.48617443,0.00019789,2]
[357288995,1743982238772,-783.7173,0.000198,2]
[357288997,1743982238781,-7400.0,0.000198,7]
[357288999,1743982238791,-742.91,0.000199,2]
[357289001,1743982238800,-3962.2722,0.000199,2]
[357289003,1743982238810,-181.39198423,0.000199,2]
[357289005,1743982238819,-239.90070708,0.000199,2]
[357289007,1743982238829,-9300.0,0.000199,7]
[357289009,1743982238839,-7718.32145115,0.000199,2]
[357289011,1743982238848,-472.77974759,0.000199,2]
[357289013,1743982238860,-2044.48617443,0.000199,2]
[357289015,1743982238871,-547.13507347,0.0001995,2]
[357289016,1743982238881,-500.0,0.00019973,2]
[357289019,1743982238890,-276.5843275,0.0001999,2]
[357289021,1743982238900,-276.5843275,0.0001999,2]
[357289022,1743982238910,-434880.45892197,0.0002,2]
[357289146,1743982240099,-670.22421238,0.0002,2]
[357289155,1743982240183,-259.20491282,0.0002,2]
[357289158,1743982240196,-467.55296596,0.0002,2]
[357289160,1743982240207,-576082.05831045,0.0002,2]
[357289162,1743982240218,-1314.63192,0.0002,2]
[357289179,1743982240398,-4176.16996464,0.0002,2]
[357289181,1743982240409,-389.24490419,0.0002,2]
[357289183,1743982240421,-1709.73773787,0.0002,2]
[357289430,1743982242862,-3497.9479826,0.0002,2]
[357289433,1743982242874,-522.5,0.0002,2]
[357289515,1743982243989,-690.50000005,0.0002,2]
[357289516,1743982244001,-43047.53237324,0.0002,2]
[357289517,1743982244135,-38730.96000001,0.0002,2]
[357289518,1743982244147,-4781.53286427,0.0002,2]
[357289519,1743982244340,-299789.2431367,0.0002,2]
[357289520,1743982244352,-54100.19649481,0.0002,2]
[357289521,1743982244383,-2000.0,0.0002,2]
[357289553,1743982245965,-14963.26533949,0.0002,2]
[357289554,1743982245982,-81496.47687667,0.0002,2]
[357289555,1743982245993,-1189.062524,0.0002,2]
[357289556,1743982246004,-30665.74277443,0.0002,2]
[357289557,1743982246029,-1968.95409554,0.0002,2]
[357289558,1743982246044,-19528.86035731,0.0002,2]
[357289559,1743982246055,-534.55381309,0.0002,2]
[357289560,1743982246067,-1337.44414781,0.0002,2]
[357289561,1743982246078,-270.31647514,0.0002,2]
[357289562,1743982246102,-1142114.60567777,0.0002,2]
[357289563,1743982246130,-330.96594672,0.0002,2]
[357289564,1743982246168,-735.66454987,0.0002,2]
[357289565,1743982246179,-2500.24986408,0.0002,2]
[357289567,1743982246232,-16611.2,0.0002,2]
[357289634,1743982259244,1250.0,0.00039441,120]
[357289635,1743982260801,451.57,0.00032932,120]
[357289636,1743982423871,250.0,0.00039441,120]
[357289637,1743982424075,500.0,0.00032876,120]
[357289638,1743982454229,247.92,0.00027378,120]
[357289639,1743982454453,247.92,0.00030116,120]
[357289640,1743982454654,247.92,0.00032854,120]
[357289641,1743982719979,-300.0,0.00019999,5]
[357289642,1743982763149,-150.0,0.00019999,5]
[357289643,1743982856379,150.92085,0.0002537,35]
[357289644,1743982856453,150.92086,0.00026,36]
[357289645,1743982856496,150.92086,0.0002725,39]
[357289646,1743982856541,150.92086,0.0002662,38]